bitfinex/quotes_SOLUSD_20251119
["timestamp","ask_amount","ask_price","bid_price","bid_amount"]
[1763541968108,2.74697778,140.59,140.55,0.7]
[1763541968632,22.34096,140.61,140.52,2.07697778]
[1763541968633,2.07697778,140.57,140.52,2.07697778]
[1763541968814,2.07697778,140.57,140.53,0.7]
[1763541968815,6.29697778,140.57,140.53,0.7]
[1763541969019,6.96697778,140.57,140.53,0.7]
[1763541969228,2.74697778,140.56,140.53,0.7]
[1763541969816,6.96697778,140.57,140.53,0.7]
[1763541971493,4.22,140.57,140.53,2.77697778]
[1763541971915,4.89,140.57,140.54,0.7]
[1763541972101,2.74697778,140.56,140.5,0.7]
[1763541972302,2.07697778,140.55,140.5,0.7]
[1763541972514,0.67,140.54,140.5,0.7]
[1763541972694,0.67,140.54,140.5,2.77697778]
[1763541973094,2.07697778,140.55,140.51,0.7]
[1763541973331,2.74697778,140.55,140.51,0.7]
[1763541973500,2.07697778,140.55,140.51,0.7]
[1763541973700,4.22,140.57,140.53,2.07697778]
[1763541974228,4.22,140.57,140.54,2.77697778]
[1763541974601,4.22,140.57,140.55,0.7]
[1763541976229,4.22,140.57,140.54,0.7]
[1763541976419,4.89,140.57,140.54,0.7]
[1763541976737,4.22,140.57,140.54,0.7]
[1763541978328,6.96697778,140.57,140.54,0.7]
[1763541978853,6.29697778,140.57,140.54,0.7]
[1763541979215,4.22,140.57,140.54,0.7]
[1763541979846,2.78697778,140.58,140.54,0.7]
[1763541981055,0.71,140.57,140.54,0.7]
[1763541982557,2.78697778,140.57,140.54,0.7]
[1763541982853,4.22,140.6,140.55,2.07697778]
[1763541983044,6.29697778,140.6,140.56,2.07697778]
[1763541983247,6.29697778,140.6,140.56,2.73697778]
[1763541983448,6.29697778,140.6,140.57,0.66]
[1763541984030,7.01697778,140.6,140.57,0.66]
[1763541985761,6.29697778,140.6,140.57,0.66]
[1763541986058,4.22,140.6,140.57,0.66]
[1763541986661,2.07697778,140.63,140.58,2.07697778]
[1763541986851,6.29697778,140.63,140.58,2.07697778]
[1763541987059,7.01697778,140.63,140.59,0.66]
[1763541987230,6.29697778,140.63,140.59,0.66]
[1763541987557,4.22,140.63,140.59,2.73697778]
[1763541988060,4.22,140.63,140.6,0.66]
[1763541988261,4.94,140.63,140.6,0.66]
[1763541988760,7.01697778,140.63,140.6,0.66]
[1763541990260,2.07697778,140.61,140.57,0.66]
[1763541990761,2.79697778,140.61,140.57,0.66]
[1763541991338,2.07697778,140.6,140.57,0.66]
[1763541991863,2.07697778,140.61,140.57,0.66]
[1763541992057,2.79697778,140.61,140.57,0.66]
[1763541993464,2.07697778,140.61,140.55,9.78882769]
[1763541993764,2.07697778,140.6,140.57,0.66]
[1763541994062,2.79697778,140.61,140.57,0.66]
[1763541994262,20.91793778,140.61,140.57,0.66]
[1763541994586,2.79697778,140.6,140.55,0.66]
[1763541994744,2.07697778,140.59,140.55,0.66]
[1763541995068,2.07697778,140.58,140.55,0.66]
[1763541995635,2.79697778,140.57,140.52,0.66]
[1763541995857,2.07697778,140.55,140.51,10.44882769]
[1763541996044,2.07697778,140.55,140.5,2.07697778]
[1763541996252,2.07697778,140.55,140.51,0.66]
[1763541996559,2.79697778,140.56,140.51,0.66]
[1763541996764,2.79697778,140.56,140.51,2.73697778]
[1763541997144,2.79697778,140.56,140.52,0.66]
[1763541997878,4.22,140.57,140.52,2.73697778]
[1763541998078,6.29697778,140.57,140.52,2.73697778]
[1763541998285,6.29697778,140.57,140.53,0.66]
[1763541998567,7.01697778,140.57,140.53,0.66]
[1763541998753,6.29697778,140.57,140.53,0.66]
[1763541998955,2.79697778,140.56,140.53,0.66]
[1763541999365,2.07697778,140.54,140.5,0.66]
[1763541999569,18.12096,140.54,140.5,0.66]
[1763541999880,20.91793778,140.54,140.5,0.66]
[1763542000958,0.72,140.53,140.5,0.66]
[1763542001265,2.07697778,140.54,140.5,0.66]
[1763542001266,2.79697778,140.54,140.5,0.66]
[1763542004982,2.79697778,140.53,140.48,2.07697778]
[1763542005180,2.79697778,140.53,140.5,0.66]
[1763542005383,2.07697778,140.53,140.5,0.66]
[1763542005748,2.07697778,140.54,140.5,0.66]
[1763542005964,2.79697778,140.54,140.5,0.66]
[1763542006471,0.72,140.53,140.5,0.66]
[1763542006678,2.07697778,140.54,140.5,0.66]
[1763542007085,2.79697778,140.54,140.5,0.66]
[1763542008476,2.07697778,140.54,140.5,0.66]
[1763542008664,2.79697778,140.54,140.5,0.66]
[1763542009860,18.12096,140.55,140.48,0.65]
[1763542009861,2.07697778,140.52,140.48,0.65]
[1763542010069,2.78697778,140.52,140.48,0.65]
[1763542010271,22.34096,140.53,140.48,0.65]
[1763542010577,25.12793778,140.53,140.48,0.65]
[1763542010883,0.71,140.52,140.48,0.65]
[1763542011476,2.78697778,140.52,140.48,0.65]
[1763542011674,2.07697778,140.52,140.48,0.65]
[1763542011865,24.41793778,140.53,140.48,2.72697778]
[1763542012070,25.12793778,140.53,140.48,2.72697778]
[1763542012280,25.12793778,140.53,140.49,0.65]
[1763542013080,2.78697778,140.52,140.47,2.72697778]
[1763542013283,2.07697778,140.51,140.47,0.65]
[1763542013483,4.22,140.5,140.47,0.65]
[1763542014488,4.93,140.5,140.44,18.12096]
[1763542014675,4.22,140.5,140.47,0.65]
[1763542014980,4.22,140.5,140.47,2.72697778]
[1763542015478,4.93,140.5,140.47,2.72697778]
[1763542016265,4.93,140.5,140.47,0.65]
[1763542016780,4.93,140.5,140.43,9.78882769]
[1763542016781,0.71,140.49,140.45,0.65]
[1763542017084,8.10298154,140.49,140.44,0.65]
[1763542017259,2.78697778,140.49,140.44,0.65]
[1763542017459,0.71,140.48,140.44,0.65]
[1763542017669,2.78697778,140.48,140.44,0.65]
[1763542018891,3.96266527,140.48,140.44,0.65]
[1763542019261,0.71,140.48,140.44,0.65]
[1763542019586,4.93,140.47,140.43,0.65]
[1763542019763,4.93,140.47,140.44,3.90266527]
[1763542019764,4.22,140.47,140.44,3.90266527]
[1763542019959,4.22,140.47,140.45,0.65]
[1763542020788,6.21999999,140.58,140.46,3.25266527]
[1763542020789,3.96266527,140.53,140.46,3.25266527]
[1763542020971,3.96266527,140.53,140.47,3.90266527]
[1763542020972,22.34096,140.52,140.47,3.90266527]
[1763542021177,22.34096,140.52,140.47,0.65]
[1763542021385,0.71,140.51,140.47,0.65]
[1763542021584,3.96266527,140.51,140.47,0.65]
[1763542021782,0.71,140.51,140.47,0.65]
[1763542021978,25.59362527,140.52,140.47,3.90266527]
[1763542022287,26.30362527,140.52,140.47,3.90266527]
[1763542022488,26.30362527,140.52,140.48,0.65]
[1763542023872,23.05096,140.52,140.48,3.90266527]
[1763542024372,23.05096,140.52,140.49,0.65]
[1763542024691,26.30362527,140.52,140.49,0.65]
[1763542025281,23.05096,140.52,140.49,0.65]
[1763542025784,3.96266527,140.51,140.41,9.78882769]
[1763542025981,3.25266527,140.5,140.46,0.65]
[1763542026184,4.22,140.49,140.46,0.65]
[1763542026778,4.22,140.49,140.46,3.90266527]
[1763542027098,4.22,140.51,140.47,3.25266527]
[1763542027394,4.22,140.51,140.48,0.65]
[1763542027576,0.71,140.5,140.46,10.43882769]
[1763542028395,3.96266527,140.5,140.46,0.65]
[1763542028772,0.71,140.49,140.45,0.65]
[1763542028972,0.71,140.49,140.46,0.65]
[1763542029297,3.25266527,140.5,140.46,0.65]
[1763542029509,3.96266527,140.5,140.46,0.65]
[1763542029806,4.22,140.51,140.47,3.25266527]
[1763542029984,4.22,140.51,140.48,0.65]
[1763542030969,3.25266527,140.49,140.45,0.65]
[1763542031174,4.22,140.48,140.45,0.65]
[1763542034784,4.22,140.48,140.45,3.90266527]
[1763542035097,7.47266527,140.51,140.45,3.90266527]
[1763542035424,8.18266527,140.51,140.46,0.65]
[1763542035586,3.25266527,140.5,140.46,0.65]
[1763542036108,3.96266527,140.5,140.46,0.65]
[1763542036279,3.25266527,140.5,140.46,0.65]
[1763542037285,8.18266527,140.51,140.46,0.65]
[1763542037492,8.18266527,140.51,140.47,3.25266527]
[1763542037493,4.22,140.51,140.47,3.25266527]
[1763542037695,4.22,140.51,140.48,0.65]
[1763542042505,4.9,140.51,140.48,0.65]
[1763542043401,4.22,140.51,140.48,0.65]
[1763542043720,4.9,140.51,140.47,0.68]
[1763542044193,8.15266527,140.51,140.47,0.68]
[1763542044398,5.32946137,140.5,140.47,0.68]
[1763542045386,4.22,140.51,140.47,0.68]
[1763542045892,4.22,140.51,140.47,3.93266527]
[1763542046413,4.22,140.51,140.48,0.68]
[1763542046990,3.93266527,140.5,140.46,0.68]
[1763542047193,7.47266527,140.51,140.47,0.68]
[1763542047493,6.01108113,140.5,140.45,3.93266527]
[1763542047705,5.33202354,140.49,140.46,9.78882769]
[1763542047901,5.33202354,140.49,140.46,10.46882769]
[1763542048212,4.9,140.48,140.44,0.68]
[1763542048523,4.9,140.48,140.45,0.68]
[1763542048524,7.47266527,140.48,140.45,0.68]
[1763542051718,8.18266527,140.48,140.45,0.68]
[1763542053716,4.22,140.48,140.45,0.68]
[1763542054903,4.22,140.48,140.45,3.93266527]
[1763542055310,4.22,140.48,140.46,0.72]
[1763542055842,8.05482657,140.5,140.43,0.72]
[1763542055843,9.3031476,140.47,140.43,0.72]
[1763542056144,8.59435821,140.46,140.42,0.72]
[1763542056327,5.34007947,140.45,140.42,0.72]
[1763542056513,3.25266527,140.46,140.42,0.72]
[1763542056839,5.34032635,140.45,140.43,9.78882769]
[1763542057042,7.47266527,140.47,140.44,0.72]
[1763542057209,5.3402666,140.46,140.44,0.72]
[1763542057532,7.47266527,140.47,140.44,0.72]
[1763542057738,5.33976173,140.46,140.44,0.72]
[1763542057916,5.33976173,140.45,140.44,0.72]
[1763542058117,7.47266527,140.47,140.44,0.72]
[1763542058410,5.33905668,140.46,140.44,0.72]
[1763542058617,7.47266527,140.47,140.44,0.72]
[1763542058820,5.3392611,140.46,140.44,0.72]
[1763542059019,5.33919853,140.45,140.41,7.47266527]
[1763542059213,7.47266527,140.47,140.42,3.25266527]
[1763542059528,5.33846523,140.46,140.43,13.04149296]
[1763542059720,4.22,140.47,140.43,10.50882769]
[1763542059914,5.33840487,140.46,140.44,0.72]
[1763542060113,7.47266527,140.47,140.44,0.72]
[1763542060325,5.33785264,140.46,140.44,0.72]
[1763542060628,7.47266527,140.47,140.44,0.72]
[1763542060822,5.33786721,140.46,140.44,0.72]
[1763542061025,7.47266527,140.47,140.44,0.72]
[1763542061231,5.33786671,140.46,140.44,0.72]
[1763542061531,7.47266527,140.47,140.44,0.72]
[1763542061730,5.33750834,140.46,140.44,0.72]
[1763542061931,3.96266527,140.46,140.4,1.09668157]
[1763542062229,9.30029103,140.45,140.4,10.88550926]
[1763542062438,4.22,140.44,140.41,0.72]
[1763542064037,4.22,140.44,140.4,0.37668157]
[1763542064335,6.04500928,140.43,140.4,1.09668157]
[1763542064519,5.33500928,140.42,140.4,0.37668157]
[1763542066122,8.76482657,140.43,140.4,0.37668157]
[1763542066313,3.96266527,140.43,140.4,0.37668157]
[1763542066636,12.98482657,140.44,140.4,1.09668157]
[1763542066836,5.33015954,140.43,140.4,1.09668157]
[1763542067250,21.37362527,140.41,140.4,0.37668157]
[1763542067425,22.36096,140.41,140.4,0.37668157]
[1763542067739,4.24,140.41,140.4,0.37668157]
[1763542068712,4.24,140.41,140.4,1.09668157]
[1763542069524,0.66,140.41,140.4,0.37668157]
[1763542069737,7.49266527,140.42,140.4,0.37668157]
[1763542069943,4.24,140.42,140.4,0.37668157]
[1763542070339,8.15266527,140.42,140.4,0.37668157]
[1763542070841,7.49266527,140.42,140.4,0.37668157]
[1763542071045,5.32467355,140.41,140.4,0.37668157]
[1763542071235,8.15266527,140.42,140.4,0.37668157]
[1763542072243,23.44155303,140.41,140.4,0.37668157]
[1763542072415,27.3542183,140.41,140.4,0.37668157]
[1763542072825,22.03362527,140.41,140.4,0.37668157]
[1763542073029,0.66,140.41,140.4,0.37668157]
[1763542073342,3.91266527,140.41,140.4,0.37668157]
[1763542073539,9.2332588,140.41,140.4,0.37668157]
[1763542074834,12.2806518,140.42,140.4,0.37668157]
[1763542075048,12.9406518,140.42,140.4,0.37668157]
[1763542075345,4.24,140.42,140.4,0.37668157]
[1763542075843,4.24,140.42,140.4,1.05668157]
[1763542078161,4.24,140.42,140.41,0.68]
[1763542079227,4.24,140.42,140.4,0.37668157]
[1763542079428,4.24,140.42,140.4,1.05668157]
[1763542081262,4.24,140.42,140.41,0.68]
[1763542081944,4.24,140.44,140.41,0.68]
[1763542083653,2.08304871,140.46,140.41,0.68]
[1763542083951,6.32304871,140.46,140.41,0.68]
[1763542085022,4.24,140.46,140.41,0.68]
[1763542085822,4.24,140.46,140.41,2.76304871]
[1763542086021,4.24,140.46,140.41,0.68]
[1763542086251,6.32304871,140.46,140.41,0.68]
[1763542086423,6.98304871,140.46,140.41,0.68]
[1763542087047,4.9,140.46,140.41,0.68]
[1763542087237,6.98304871,140.46,140.41,0.68]
[1763542087951,4.24,140.46,140.41,2.76304871]
[1763542088333,4.24,140.46,140.42,0.68]
[1763542091334,8.06434098,140.45,140.4,0.37668157]
[1763542091658,20.20400871,140.41,140.4,0.37668157]
[1763542092161,25.10400871,140.41,140.4,0.37668157]
[1763542092460,4.24,140.42,140.4,1.05668157]
[1763542093565,4.24,140.42,140.4,0.37668157]
[1763542093566,7.53351163,140.41,140.4,0.37668157]
[1763542093855,2.74304871,140.41,140.4,0.37668157]
[1763542094240,25.65447163,140.41,140.4,0.37668157]
[1763542096770,49.76758499,140.41,140.37,0.2]
[1763542097073,22.36096,140.42,140.37,0.2]
[1763542097074,20.20400871,140.38,140.37,0.2]
[1763542097259,16.50282094,140.4,140.37,0.2]
[1763542097260,9.55540673,140.4,140.37,0.2]
[1763542097435,4.24,140.39,140.37,0.88]
[1763542097858,9.03140141,140.39,140.37,0.88]
[1763542098250,11.11445012,140.39,140.37,0.2]
[1763542098654,9.03140141,140.39,140.37,0.2]
[1763542098833,11.11445012,140.39,140.37,0.2]
[1763542099745,11.80445012,140.39,140.37,0.2]
[1763542100262,9.03140141,140.39,140.37,0.92]
[1763542100447,4.24,140.39,140.37,0.92]
[1763542101643,7.01304871,140.39,140.37,0.2]
[1763542101850,6.32304871,140.39,140.37,0.2]
[1763542102151,7.01304871,140.39,140.37,0.2]
[1763542102350,18.12096,140.38,140.37,0.2]
[1763542103271,4.24,140.39,140.37,0.92]
[1763542103771,4.24,140.39,140.37,0.2]
[1763542104267,6.32304871,140.39,140.37,0.2]
[1763542104848,4.24,140.39,140.37,0.2]
[1763542105567,4.24,140.39,140.37,0.92]
[1763542106061,22.36096,140.39,140.38,0.72]
[1763542106446,0.69,140.42,140.38,0.72]
[1763542106646,2.08304871,140.41,140.38,0.72]
[1763542106847,4.26,140.4,140.38,0.72]
[1763542107149,6.34304871,140.4,140.38,0.72]
[1763542109263,0.69,140.39,140.37,0.2]
[1763542109467,7.03304871,140.4,140.37,0.2]
[1763542109847,7.03304871,140.4,140.37,0.92]
[1763542111663,2.08304871,140.39,140.37,0.2]
[1763542112067,2.08304871,140.39,140.37,0.92]
[1763542113171,4.95,140.4,140.37,0.92]
[1763542113172,7.03304871,140.4,140.37,0.92]
[1763542113547,2.08304871,140.39,140.37,0.92]
[1763542113746,6.34304871,140.4,140.37,0.92]
[1763542113944,7.03304871,140.4,140.37,0.92]
[1763542115386,6.34304871,140.4,140.37,0.92]
[1763542119588,2.08304871,140.39,140.37,0.92]
[1763542121180,4.26,140.4,140.37,0.2]
[1763542121380,4.26,140.4,140.38,0.72]
[1763542121567,18.12096,140.42,140.38,0.72]
[1763542121991,20.20400871,140.42,140.38,0.72]
[1763542122368,2.08304871,140.42,140.38,0.72]
[1763542124190,22.36096,140.43,140.39,9.78882769]
[1763542124191,4.24,140.43,140.39,9.78882769]
[1763542124401,4.24,140.43,140.39,11.8718764]
[1763542124691,18.12096,140.44,140.4,0.72]
[1763542124887,20.20400871,140.44,140.4,0.72]
[1763542125993,4.24,140.47,140.43,11.8718764]
[1763542126402,4.24,140.47,140.44,0.72]
[1763542127072,4.79211442,140.48,140.44,2.80304871]
[1763542127275,4.24,140.49,140.44,2.80304871]
[1763542127478,6.32304871,140.49,140.45,0.72]
[1763542127992,24.44400871,140.49,140.45,0.72]
[1763542129185,22.36096,140.49,140.45,0.72]
[1763542129710,24.44400871,140.49,140.45,0.72]
[1763542130105,22.36096,140.49,140.45,2.80304871]
[1763542130482,22.36096,140.49,140.46,0.72]
[1763542134185,24.44400871,140.49,140.46,0.72]
[1763542134804,22.36096,140.49,140.46,0.72]
[1763542136314,25.12400871,140.49,140.46,0.72]
[1763542136693,24.44400871,140.49,140.46,0.72]
[1763542137847,0.68,140.48,140.42,0.72]
[1763542138127,2.08304871,140.46,140.42,0.72]
[1763542138312,6.32304871,140.46,140.42,0.72]
[1763542138616,7.00304871,140.46,140.42,0.72]
[1763542138921,6.32304871,140.46,140.42,0.72]
[1763542139598,7.00304871,140.46,140.42,0.72]
[1763542140814,8.1737754,140.46,140.42,0.72]
[1763542141525,7.4937754,140.46,140.42,0.72]
[1763542141737,4.24,140.46,140.42,3.9737754]
[1763542142018,7.4937754,140.5,140.44,3.2537754]
[1763542142225,7.4937754,140.49,140.45,0.72]
[1763542142633,8.1737754,140.49,140.45,0.72]
[1763542142799,3.2537754,140.48,140.45,0.72]
[1763542143126,4.92,140.49,140.45,0.72]
[1763542143127,8.1737754,140.49,140.45,0.72]
[1763542143828,4.24,140.49,140.45,3.9737754]
[1763542144211,4.24,140.49,140.46,0.72]
[1763542144607,0.68,140.53,140.47,3.2537754]
[1763542144927,4.24,140.52,140.47,3.2537754]
[1763542145143,4.24,140.52,140.48,0.72]
[1763542145838,4.92,140.52,140.48,0.72]
[1763542146439,8.1737754,140.52,140.48,0.72]
[1763542146733,4.24,140.52,140.48,0.72]
[1763542146931,4.24,140.52,140.48,3.9737754]
[1763542147313,4.24,140.52,140.49,0.72]
[1763542148027,0.1,140.55,140.51,9.78882769]
[1763542148240,4.34,140.55,140.51,3.2537754]
[1763542148439,4.34,140.55,140.52,0.72]
[1763542151935,0.1,140.55,140.53,3.2537754]
[1763542152320,0.1,140.55,140.54,0.72]
[1763542156941,4.0337754,140.55,140.52,0.72]
[1763542157332,3.2537754,140.54,140.52,0.72]
[1763542157537,4.0337754,140.55,140.52,0.72]
[1763542157759,7.4937754,140.54,140.5,0.72]
[1763542157932,8.1737754,140.54,140.5,0.72]
[1763542158445,3.2537754,140.52,140.49,0.72]
[1763542158831,3.2537754,140.5,140.45,0.72]
[1763542159032,4.92,140.51,140.45,0.72]
[1763542159033,3.2537754,140.49,140.45,0.72]
[1763542159243,3.9337754,140.49,140.45,0.72]
[1763542159745,3.2537754,140.49,140.45,0.72]
[1763542160451,7.4937754,140.51,140.45,3.9737754]
[1763542160949,3.2537754,140.5,140.46,0.69]
[1763542162148,3.9337754,140.49,140.44,3.2537754]
[1763542162325,3.9337754,140.49,140.46,0.69]
[1763542162526,3.2537754,140.49,140.46,0.69]
[1763542163445,3.2537754,140.48,140.46,0.69]
[1763542163634,3.2537754,140.49,140.46,0.69]
[1763542165644,0.68,140.5,140.46,0.69]
[1763542165843,3.2537754,140.49,140.46,0.69]
[1763542166450,4.24,140.51,140.46,0.69]
[1763542166451,22.36096,140.51,140.47,3.2537754]
[1763542166622,22.36096,140.51,140.48,0.7]
[1763542166623,4.24,140.51,140.48,0.7]
[1763542167035,4.24,140.51,140.48,3.9537754]
[1763542167560,3.2537754,140.49,140.46,0.7]
[1763542167924,3.9537754,140.5,140.46,0.7]
[1763542168128,0.7,140.5,140.46,0.7]
[1763542168345,3.9537754,140.5,140.46,0.7]
[1763542169531,3.2537754,140.5,140.41,23.81765538]
[1763542169737,0.7,140.49,140.45,0.7]
[1763542169939,3.9537754,140.49,140.45,0.7]
[1763542170453,3.2537754,140.48,140.45,0.7]
[1763542171249,23.06096,140.48,140.44,0.7]
[1763542171435,26.3147354,140.48,140.44,0.7]
[1763542171952,4.94,140.48,140.44,0.7]
[1763542172147,8.1937754,140.48,140.44,0.7]
[1763542173250,8.1937754,140.48,140.44,3.9537754]
[1763542173251,4.24,140.48,140.44,3.9537754]
[1763542173454,4.24,140.48,140.44,0.7]
[1763542173642,4.94,140.48,140.43,3.2537754]
[1763542173955,4.94,140.48,140.45,0.7]
[1763542174652,8.1937754,140.48,140.43,3.2537754]
[1763542174947,8.1937754,140.48,140.45,0.7]
[1763542176559,8.1937754,140.48,140.44,0.7]
[1763542177665,3.9537754,140.47,140.44,0.7]
[1763542178334,0.7,140.47,140.44,0.7]
[1763542179648,4.24,140.48,140.44,0.7]
[1763542179852,8.1937754,140.48,140.44,0.7]
[1763542181232,3.9537754,140.47,140.44,0.7]
[1763542181562,4.94,140.48,140.44,0.7]
[1763542181744,3.2537754,140.47,140.44,0.7]
[1763542182134,8.1937754,140.48,140.44,0.7]
[1763542183265,8.1937754,140.48,140.4,18.12096]
[1763542183266,3.2537754,140.45,140.4,18.12096]
[1763542183465,18.12096,140.41,140.37,0.9]
[1763542183777,4.24,140.41,140.38,0.7]
[1763542184062,18.12096,140.4,140.38,0.7]
[1763542184759,7.4937754,140.41,140.38,0.7]
[1763542184760,4.24,140.41,140.38,0.7]
[1763542185265,7.4937754,140.41,140.38,0.7]
[1763542188757,3.2537754,140.4,140.38,0.7]
[1763542189467,4.85,140.41,140.37,0.2]
[1763542189773,3.2537754,140.4,140.38,0.67]
[1763542189966,7.4937754,140.41,140.38,0.67]
[1763542191669,3.2537754,140.4,140.38,0.67]
[1763542192875,3.2537754,140.4,140.37,0.2]
[1763542193080,4.24,140.41,140.37,0.87]
[1763542193277,3.2537754,140.4,140.37,0.87]
[1763542194188,3.2537754,140.4,140.38,0.67]
[1763542194790,22.97096,140.41,140.38,0.67]
[1763542194986,3.2537754,140.4,140.38,0.67]
[1763542195406,25.6147354,140.41,140.38,0.67]
[1763542195787,18.12096,140.41,140.38,0.67]
[1763542196289,3.2537754,140.42,140.38,0.67]
[1763542196491,21.3747354,140.42,140.38,0.67]
[1763542198992,3.2537754,140.41,140.38,0.67]
[1763542199908,21.3747354,140.42,140.38,0.67]
[1763542200711,3.2537754,140.41,140.38,0.67]
[1763542201588,3.2537754,140.41,140.37,0.2]
[1763542201791,21.9847354,140.4,140.37,0.2]
[1763542201995,26.2247354,140.4,140.37,0.2]
[1763542202191,25.6147354,140.4,140.37,0.87]
[1763542202911,24.44515284,140.4,140.37,0.87]
[1763542203220,2.69419284,140.39,140.37,0.2]
[1763542203417,2.08419284,140.38,140.37,0.2]
[1763542203587,2.69419284,140.38,140.37,0.2]
[1763542205323,20.81515284,140.38,140.37,0.2]
[1763542207915,26.12097499,140.38,140.37,0.2]
[1763542208435,35.90980268,140.38,140.37,0.2]
[1763542208727,2.08419284,140.34,140.33,0.2]
[1763542209019,6.32419284,140.34,140.33,0.2]
[1763542209416,6.93419284,140.34,140.33,0.2]
[1763542211795,4.24,140.34,140.33,0.2]
[1763542212024,0.61,140.39,140.33,0.87]
[1763542212196,2.08419284,140.36,140.33,0.87]
[1763542212518,2.08419284,140.36,140.33,0.2]
[1763542212710,2.08419284,140.36,140.34,0.67]
[1763542215399,6.32419284,140.36,140.34,0.67]
[1763542216114,4.24,140.36,140.34,0.67]
[1763542216430,24.44515284,140.39,140.34,0.67]
[1763542216920,24.44515284,140.39,140.34,2.75419284]
[1763542216921,4.24,140.39,140.34,2.75419284]
[1763542217094,4.24,140.39,140.35,0.67]
[1763542217299,4.24,140.39,140.35,2.75419284]
[1763542217701,4.24,140.39,140.36,0.67]
[1763542218106,2.08419284,140.41,140.36,0.67]
[1763542218401,2.08419284,140.4,140.36,0.67]
[1763542219101,2.69419284,140.39,140.36,0.67]
[1763542219299,2.08419284,140.38,140.36,0.67]
[1763542219501,6.32419284,140.39,140.36,0.67]
[1763542224328,2.08419284,140.38,140.36,0.67]
[1763542224631,6.32419284,140.39,140.36,0.67]
[1763542228431,6.93419284,140.39,140.36,0.67]
[1763542228945,6.32419284,140.39,140.36,0.67]
[1763542229719,2.08419284,140.38,140.36,0.67]
[1763542229913,2.08419284,140.38,140.35,0.72]
[1763542230627,2.08419284,140.38,140.33,2.28419284]
[1763542230628,2.69419284,140.37,140.33,0.92]
[1763542230938,2.69419284,140.37,140.34,0.72]
[1763542230939,2.08419284,140.37,140.34,0.72]
[1763542232512,6.86252778,140.38,140.34,0.72]
[1763542232829,5.3315515,140.37,140.33,0.2]
[1763542233009,2.69419284,140.37,140.33,0.2]
[1763542233211,2.69419284,140.37,140.33,0.92]
[1763542236747,22.36096,140.39,140.34,0.72]
[1763542237044,7.41640688,140.38,140.34,0.72]
[1763542237242,5.33221404,140.37,140.34,0.72]
[1763542237650,8.02640688,140.37,140.33,0.2]
[1763542237941,2.08419284,140.36,140.33,0.92]
[1763542238447,2.08419284,140.36,140.34,0.72]
[1763542240459,2.08419284,140.36,140.33,0.2]
[1763542240460,0.61,140.35,140.33,0.2]
[1763542240755,32.14978769,140.34,140.33,0.2]
[1763542241060,22.36096,140.34,140.33,0.2]
[1763542241253,4.24,140.34,140.33,0.2]
[1763542241421,18.12096,140.36,140.33,0.92]
[1763542241620,0.61,140.38,140.33,0.92]
[1763542241621,22.36096,140.35,140.33,0.92]
[1763542241821,4.24,140.35,140.34,0.72]
[1763542242023,4.24,140.38,140.34,2.80419284]
[1763542242225,18.12096,140.37,140.34,0.72]
[1763542242523,4.24,140.38,140.35,0.72]
[1763542242719,18.12096,140.36,140.35,0.72]
[1763542243636,4.24,140.38,140.35,0.72]
[1763542243832,4.24,140.38,140.35,2.80419284]
[1763542244245,4.24,140.38,140.36,0.72]